bitfinex-derivatives/quotes_SOLF0:USTF0_20251119
["timestamp","ask_amount","ask_price","bid_price","bid_amount"]
[1763587410425,3.11,135.83,135.79,6.635]
[1763587410619,3.11,135.83,135.65,116.6032]
[1763587410830,3.15741185,135.76,135.74,0.04889485]
[1763587411018,3.15741185,135.76,135.65,16.86]
[1763587411324,3.11,135.76,135.65,16.86]
[1763587411825,3.11,135.76,135.7,6.6393]
[1763587412021,0.05354242,135.74,135.65,16.86]
[1763587412223,0.05671229,135.71,135.65,16.86]
[1763587412423,3.11,135.7,135.66,6.6415]
[1763587413724,3.11,135.7,135.59,16.86]
[1763587413921,0.05273343,135.66,135.59,16.86]
[1763587414218,3.16273343,135.66,135.46,103.4651]
[1763587414423,0.05632158,135.57,135.49,103.4452]
[1763587414627,0.05632158,135.57,135.55,6.6468]
[1763587415027,0.05632158,135.57,135.47,16.84]
[1763587415331,0.0471186,135.53,135.47,16.84]
[1763587415625,3.11,135.59,135.47,16.84]
[1763587416532,0.05662136,135.54,135.52,0.04977152]
[1763587416728,0.05220854,135.54,135.52,0.04977152]
[1763587417231,0.05220854,135.54,135.47,16.84]
[1763587417232,3.11,135.53,135.38,103.5284]
[1763587417435,3.11,135.53,135.36,70.74]
[1763587417617,3.11,135.53,135.38,16.84]
[1763587417822,3.11,135.53,135.41,6.6539]
[1763587418019,3.11,135.53,135.38,16.84]
[1763587418318,3.26180473,135.47,135.44,0.02105803]
[1763587418518,0.05642608,135.47,135.44,0.02105803]
[1763587418838,3.21,135.52,135.49,6.6499]
[1763587419130,3.21,135.64,135.45,103.4759]
[1763587419323,3.21,135.64,135.51,6.649]
[1763587419525,3.21,135.64,135.45,16.84]
[1763587419723,174.0549,135.72,135.45,16.84]
[1763587419724,3.21,135.55,135.53,0.05560664]
[1763587419921,3.25958377,135.55,135.53,0.04774839]
[1763587420126,3.21,135.54,135.45,16.84]
[1763587420326,3.21,135.54,135.46,6.6514]
[1763587420532,3.21,135.54,135.45,16.84]
[1763587420833,3.21,135.54,135.46,6.6514]
[1763587421031,0.04660723,135.51,135.49,0.02973572]
[1763587421231,3.21,135.5,135.38,103.529]
[1763587421431,3.21,135.5,135.41,30.57654195]
[1763587421830,3.21,135.5,135.4,30.57654195]
[1763587422032,3.21,135.5,135.42,6.6533]
[1763587422234,3.25852118,135.47,135.42,6.6533]
[1763587422435,0.05309565,135.46,135.44,30.57654195]
[1763587422727,3.25705519,135.46,135.44,6.6525]
[1763587422936,3.25705519,135.46,135.38,30.57654195]
[1763587423128,3.25705519,135.46,135.41,6.6536]
[1763587423325,3.25705519,135.46,135.38,30.57654195]
[1763587423628,0.04705519,135.46,135.42,30.57654195]
[1763587423834,0.05047013,135.45,135.42,30.57654195]
[1763587424031,0.04996026,135.45,135.38,30.57654195]
[1763587424233,3.26498618,135.43,135.36,30.57654195]
[1763587424434,0.05422473,135.41,135.36,30.57654195]
[1763587424629,103.3426,135.63,135.36,30.57654195]
[1763587424630,3.21,135.51,135.38,103.5285]
[1763587425030,3.21,135.51,135.38,30.57654195]
[1763587425227,3.21,135.51,135.42,6.6533]
[1763587425632,3.26126729,135.48,135.45,0.04843296]
[1763587425831,0.05415444,135.48,135.45,0.04947341]
[1763587426238,0.05415444,135.48,135.46,6.6511]
[1763587427339,3.21,135.57,135.5,6.6495]
[1763587427744,3.21,135.57,135.43,16.8]
[1763587427948,3.21,135.57,135.32,103.572]
[1763587428138,3.21,135.57,135.34,30.57654195]
[1763587428345,3.26608701,135.46,135.43,0.05560328]
[1763587428640,3.26497403,135.46,135.34,30.57654195]
[1763587428840,3.21,135.46,135.39,6.6545]
[1763587429036,3.21,135.46,135.34,30.57654195]
[1763587429537,0.05015217,135.41,135.39,0.04679315]
[1763587429736,0.00296838,135.41,135.39,0.05359578]
[1763587429940,3.21,135.64,135.4,120.3128]
[1763587430132,3.21,135.64,135.44,30.57654195]
[1763587430736,3.21,135.59,135.5,6.6495]
[1763587430938,3.21,135.54,135.41,30.57654195]
[1763587431236,0.04846713,135.49,135.47,6.6507]
[1763587431543,3.21,135.54,135.34,13.3147]
[1763587431840,3.21,135.54,135.39,30.57654195]
[1763587432042,3.21,135.47,135.45,0.04849347]
[1763587432245,0.051104,135.47,135.45,0.05480958]
[1763587432837,3.261104,135.47,135.45,0.05480958]
[1763587433045,3.21,135.46,135.33,30.57654195]
[1763587433245,3.21,135.55,135.34,103.5602]
[1763587433447,3.21,135.52,135.37,30.57654195]
[1763587433644,3.21,135.52,135.38,103.5274]
[1763587433845,3.21,135.52,135.46,6.6512]
[1763587434252,3.25796302,135.5,135.38,16.8]
[1763587434447,0.05308826,135.45,135.38,16.8]
[1763587434747,0.05308826,135.45,135.44,6.6523]
[1763587434943,22.52,135.69,135.44,103.4791]
[1763587435143,3.21,135.71,135.51,103.4254]
[1763587435346,3.21,135.71,135.57,30.57654195]
[1763587435534,70.88,135.93,135.61,30.57654195]
[1763587435535,3.21,135.83,135.61,30.57654195]
[1763587435734,3.21,135.83,135.65,6.642]
[1763587435940,3.21,135.74,135.62,16.86]
[1763587436546,3.21,135.74,135.57,133.95724195]
[1763587436853,3.21,135.74,135.5,103.4376]
[1763587437141,0.04979957,135.63,135.54,30.57654195]
[1763587437349,3.21,135.69,135.58,6.6453]
[1763587437550,3.21,135.69,135.54,30.57654195]
[1763587438148,3.21,135.69,135.51,16.86]
[1763587438446,3.21,135.69,135.5,134.00984195]
[1763587438447,3.2602033,135.61,135.59,0.05024525]
[1763587438638,0.04755706,135.61,135.59,0.05530009]
[1763587439146,3.25755706,135.61,135.49,16.86]
[1763587439347,3.21,135.61,135.49,16.86]
[1763587439650,3.21,135.61,135.5,6.6493]
[1763587439947,3.21,135.61,135.52,6.6482]
[1763587440148,0.04695399,135.58,135.52,30.57654195]
[1763587440339,3.21,135.74,135.57,103.3815]
[1763587440539,3.21,135.74,135.56,30.57654195]
[1763587440745,3.21,135.74,135.57,16.88]
[1763587441039,3.21,135.74,135.44,103.482]
[1763587441239,3.21,135.74,135.53,30.57654195]
[1763587441445,3.21,135.67,135.54,16.88]
[1763587441750,3.25980521,135.62,135.59,0.05146217]
[1763587441954,3.25980521,135.62,135.59,0.047055]
[1763587442342,0.04980521,135.62,135.59,0.047055]
[1763587442653,3.25980521,135.62,135.59,0.047055]
[1763587444548,0.04980521,135.62,135.59,0.047055]
[1763587444847,3.25980521,135.62,135.59,0.047055]
[1763587445648,0.04980521,135.62,135.59,0.047055]
[1763587447750,3.26980521,135.62,135.59,0.047055]
[1763587447950,0.04980521,135.62,135.59,0.047055]
[1763587448152,10.22973,135.7,135.59,0.047055]
[1763587448153,3.58983,135.7,135.59,1.527055]
[1763587448357,3.58983,135.7,135.59,30.57654195]
[1763587448559,3.58983,135.7,135.6,103.358]
[1763587448754,3.58983,135.7,135.63,30.57654195]
[1763587448955,0.24983,135.7,135.68,6.6404]
[1763587449161,3.22,135.79,135.63,16.86]
[1763587449458,0.05127445,135.72,135.7,0.05452545]
[1763587449645,0.05219202,135.72,135.7,0.05593803]
[1763587450053,0.05219202,135.72,135.7,6.69533803]
[1763587450252,0.05219202,135.72,135.7,0.05593803]
[1763587450463,0.05219202,135.72,135.7,6.69533803]
[1763587450664,1.2807066,135.97,135.75,103.2432]
[1763587450959,4.5007066,135.97,135.82,103.1941]
[1763587451152,3.22,136.01,135.83,16.86]
[1763587451352,3.22,136.01,135.86,17.45537249]
[1763587451556,3.22,136.01,135.83,120.0437]
[1763587451860,0.04853562,135.95,135.92,0.05471257]
[1763587452248,3.22,136.05,135.86,34.31537249]
[1763587452448,0.04743537,135.95,135.92,0.05052791]
[1763587452654,3.22,136.0,135.79,103.2149]
[1763587452960,3.22,136.0,135.83,17.45537249]
[1763587453155,3.22,136.0,135.85,6.6321]
[1763587453466,0.04859513,135.93,135.9,0.04863586]
[1763587453654,3.27077005,135.93,135.9,0.05571489]
[1763587453856,3.27077005,135.93,135.84,16.86]
[1763587454059,3.22,135.93,135.84,23.4925]
[1763587454254,3.22,135.93,135.81,16.84]
[1763587454464,3.22,135.98,135.81,16.84]
[1763587454758,3.26663464,135.91,135.88,0.04693414]
[1763587454966,3.22,135.91,135.73,17.45537249]
[1763587455154,3.22,135.89,135.69,16.84]
[1763587455351,3.22,135.88,135.69,34.29537249]
[1763587455556,3.22,135.88,135.69,16.84]
[1763587455749,3.22,135.84,135.64,17.45537249]
[1763587456164,3.22,135.84,135.73,0.04442449]
[1763587456361,3.22,135.84,135.69,6.6399]
[1763587456560,3.22,135.84,135.72,17.45537249]
[1763587457165,3.22,135.9,135.76,6.6365]
[1763587457464,3.22,135.9,135.76,17.45537249]
[1763587457664,3.22,135.95,135.8,17.45537249]
[1763587457865,3.22,135.95,135.82,6.6337]
[1763587458266,3.22,135.89,135.87,0.04896798]
[1763587458567,3.26940076,135.89,135.87,0.05280878]
[1763587458770,0.04940076,135.89,135.87,0.05280878]
[1763587459156,3.26940076,135.89,135.87,0.05280878]
[1763587459658,0.04940076,135.89,135.87,0.05280878]
[1763587460567,3.26940076,135.89,135.87,0.05280878]
[1763587461557,4.74940076,135.89,135.78,6.6356]
[1763587461754,3.22,135.89,135.78,6.6356]
[1763587461955,3.22,135.87,135.72,6.6386]
[1763587462157,3.22,135.83,135.6,174.1175]
[1763587462458,3.22,135.81,135.63,103.3381]
[1763587462667,0.04832653,135.73,135.71,0.04903009]
[1763587462857,0.05351767,135.73,135.71,0.05448634]
[1763587464262,3.27351767,135.73,135.71,0.05448634]
[1763587464462,4.75351767,135.73,135.6,70.76]
[1763587464664,3.22,135.73,135.57,16.8]
[1763587464962,3.22,135.73,135.55,17.45537249]
[1763587465374,103.1197,135.92,135.58,103.3735]
[1763587465560,3.22,135.78,135.58,103.3735]
[1763587465762,3.22,135.78,135.56,103.3915]
[1763587465960,3.01,135.76,135.58,120.82917249]
[1763587466163,3.01,135.76,135.58,17.45537249]
[1763587466360,3.01,135.76,135.64,6.6424]
[1763587466567,3.06622764,135.71,135.69,0.05501198]
[1763587466867,3.06622764,135.71,135.64,6.6424]
[1763587466868,3.05676215,135.71,135.63,6.6431]
[1763587467068,3.01,135.71,135.63,6.6431]
[1763587467365,3.01,135.76,135.63,16.78]
[1763587467763,0.05596507,135.71,135.68,0.03265449]
[1763587468071,3.06596507,135.71,135.56,16.82]
[1763587468272,3.01,135.71,135.56,16.82]
[1763587468457,3.01,135.71,135.55,120.85227249]
[1763587468458,3.01,135.71,135.59,6.6447]
[1763587468659,3.01,135.7,135.55,17.45537249]
[1763587469166,3.06129028,135.64,135.51,17.45537249]
[1763587469364,0.05270821,135.59,135.51,17.45537249]
[1763587469763,0.05270821,135.59,135.52,103.4221]
[1763587470072,0.05270821,135.59,135.51,120.88117249]
[1763587470273,0.05270821,135.59,135.56,6.6462]
[1763587470470,3.01,135.73,135.58,17.45537249]
[1763587470669,3.01,135.73,135.62,6.6436]
[1763587470972,3.01,135.73,135.53,103.4099]
[1763587470973,3.01,135.73,135.57,16.82]
[1763587471271,3.01,135.73,135.59,103.3646]
[1763587471472,0.04753396,135.67,135.65,0.0480999]
[1763587471672,0.05197949,135.67,135.65,0.0480999]
[1763587471860,3.06197949,135.67,135.44,21.88621913]
[1763587472061,3.01,135.67,135.52,17.45537249]
[1763587472470,3.01,135.67,135.54,6.6474]
[1763587472665,3.01,135.66,135.48,17.45537249]
[1763587472869,3.01,135.61,135.48,16.82]
[1763587473163,3.05741871,135.58,135.45,17.45537249]
[1763587473364,0.04925982,135.53,135.41,17.45537249]
[1763587473576,0.04700291,135.48,135.43,16.82]
[1763587473873,0.04700291,135.48,135.38,34.27537249]
[1763587474065,0.05101708,135.44,135.38,34.27537249]
[1763587474586,0.05101708,135.44,135.38,16.82]
[1763587474975,0.05101708,135.44,135.41,6.6535]
[1763587475272,0.05101708,135.44,135.34,34.27537249]
[1763587475476,0.04802789,135.4,135.34,34.27537249]
[1763587475776,0.04802789,135.4,135.34,16.82]
[1763587476265,0.04802789,135.4,135.38,6.655]
[1763587476669,3.01,135.52,135.38,1.48]
[1763587476864,3.01,135.52,135.35,17.45537249]
[1763587477067,3.01,135.52,135.36,16.82]
[1763587477273,3.01,135.52,135.43,6.6529]
[1763587477475,3.01,135.52,135.37,103.5323]
[1763587477767,3.04,135.83,135.56,103.39]
[1763587477974,3.04,135.83,135.61,120.80657249]
[1763587478167,1.28302026,135.77,135.71,6.639]
[1763587478381,3.04,135.83,135.66,16.86]
[1763587478986,12.90212,135.78,135.64,16.96]
[1763587479286,0.05035215,135.73,135.71,0.0046608]
[1763587479474,0.05035215,135.73,135.64,23.6024]
[1763587479780,3.04,135.77,135.64,16.96]
[1763587479970,3.04,135.77,135.64,120.288]
[1763587480171,9.86212,135.78,135.66,103.3155]
[1763587480367,0.00899686,135.73,135.71,0.04803115]
[1763587480571,9.86212,135.78,135.71,0.04803115]
[1763587480969,30.35749249,135.78,135.71,0.04803115]
[1763587481169,12.90212,135.78,135.71,0.04803115]
[1763587481375,0.05547866,135.76,135.71,0.04803115]
[1763587482070,3.09547866,135.76,135.71,0.04803115]
[1763587483278,0.05547866,135.76,135.71,0.04803115]
[1763587483478,3.09547866,135.76,135.71,0.04803115]
[1763587483675,3.04,135.73,135.62,6.6435]
[1763587483882,3.04,135.73,135.59,16.94]
[1763587484173,3.04,135.73,135.63,6.643]
[1763587484379,3.04,135.73,135.59,16.94]
[1763587484684,0.05119994,135.67,135.65,0.04458232]
[1763587484982,3.09427976,135.67,135.65,0.04458232]
[1763587485172,3.09427976,135.67,135.59,16.94]
[1763587487582,3.09427976,135.67,135.52,87.74]
[1763587487790,0.05519655,135.61,135.52,87.74]
[1763587488082,0.04847636,135.58,135.47,16.9]
[1763587488286,0.04647514,135.54,135.52,6.6481]
[1763587488482,0.05230978,135.54,135.47,120.3575]
[1763587488784,0.05230978,135.54,135.47,16.9]
[1763587488990,0.05230978,135.54,135.52,6.6481]
[1763587489389,3.04,135.63,135.53,1.48]
[1763587489589,3.04,135.63,135.47,34.35537249]
[1763587489983,3.04,135.63,135.53,6.6476]
[1763587490180,3.04,135.63,135.47,16.9]
[1763587490383,0.05234014,135.56,135.54,0.04723915]
[1763587490583,0.0541355,135.56,135.54,0.05011284]
[1763587491392,3.0941355,135.56,135.43,17.45537249]
[1763587491584,3.04,135.56,135.48,6.6503]
[1763587491785,3.04,135.56,135.43,16.88]
[1763587492786,0.05204727,135.51,135.43,16.88]
[1763587493190,0.05204727,135.51,135.48,6.65]
[1763587493489,0.05204727,135.51,135.38,103.5258]
[1763587493693,0.05138857,135.46,135.38,17.45537249]
[1763587493895,0.04956432,135.43,135.38,17.45537249]
[1763587494084,3.04,135.52,135.38,17.45537249]
[1763587494797,3.04,135.52,135.36,16.88]
[1763587495188,0.0475844,135.45,135.43,0.04716053]
[1763587495388,3.09529004,135.45,135.36,16.88]
[1763587495590,3.04,135.45,135.36,16.88]
[1763587495890,3.04,135.49,135.36,34.33537249]
[1763587496492,0.05174276,135.44,135.39,6.6545]
[1763587496891,3.09174276,135.44,135.37,6.6559]
[1763587497097,3.09174276,135.44,135.36,16.88]
[1763587497292,0.05174276,135.44,135.36,16.88]
[1763587497491,0.05174276,135.44,135.41,6.6536]
[1763587497896,0.05174276,135.44,135.42,6.653]
[1763587498094,3.04,135.54,135.4,17.45537249]
[1763587498288,3.04,135.54,135.32,174.3713]
[1763587498488,3.04,135.53,135.4,6.654]
[1763587498689,3.04,135.53,135.36,17.45537249]
[1763587499084,0.04965172,135.46,135.43,0.04782209]
[1763587499290,0.05471483,135.46,135.43,0.04672745]
[1763587499491,3.09471483,135.46,135.43,0.04672745]
[1763587500598,3.09471483,135.46,135.34,16.86]
[1763587500790,3.04,135.46,135.34,16.86]
[1763587500992,3.04,135.46,135.39,6.6545]
[1763587501389,0.05495693,135.44,135.39,6.6545]
[1763587501594,3.04,135.43,135.37,6.6558]
[1763587501790,0.05128824,135.41,135.34,16.86]
[1763587502795,3.09128824,135.41,135.32,70.8]
[1763587502994,0.05205892,135.38,135.3,16.84]
[1763587503193,3.04,135.41,135.25,17.45537249]
[1763587503399,3.08735374,135.35,135.2,103.6673]
[1763587503597,0.05055156,135.29,135.17,134.47347249]
[1763587503801,3.04,135.35,135.19,103.6744]
[1763587503998,3.04,135.35,135.26,0.05052254]
[1763587504202,3.04,135.35,135.18,34.29537249]
[1763587504499,3.04,135.35,135.2,103.6666]
[1763587504707,3.04,135.35,135.31,6.6584]
[1763587505000,0.05398155,135.34,135.32,0.05154375]
[1763587505205,22.16,135.51,135.32,0.05154375]
[1763587505206,3.04,135.51,135.37,6.6555]
[1763587505397,3.04,135.49,135.32,103.5755]
[1763587505705,3.04,135.49,135.4,6.6542]
[1763587505899,3.04,135.49,135.31,17.45537249]
[1763587506101,3.04,135.4,135.39,0.05274035]
[1763587506300,4.52,135.4,135.38,0.05231303]
[1763587506604,3.09030273,135.4,135.26,134.39557249]
[1763587506805,3.09030273,135.4,135.33,6.6574]
[1763587506806,3.04,135.4,135.33,6.6574]
[1763587507305,3.04,135.4,135.26,17.45537249]
[1763587507507,3.04,135.4,135.26,16.84]
[1763587507699,3.09549117,135.34,135.32,0.05348014]
[1763587508009,3.08928249,135.34,135.32,0.0512109]
[1763587508308,3.08928249,135.34,135.26,16.84]
[1763587508609,3.08928249,135.34,135.21,134.43917249]
[1763587508802,3.04,135.34,135.22,16.84]
[1763587509107,3.04,135.34,135.22,120.4893]
[1763587509308,0.0548433,135.29,135.22,120.4893]
[1763587509503,3.2,135.39,135.22,120.4893]
[1763587509711,3.2,135.39,135.23,103.6436]
[1763587510108,3.2,135.39,135.21,30.78257249]
[1763587510411,3.2,135.39,135.22,16.82]
[1763587510712,0.02385006,135.3,135.29,6.6599]
[1763587510908,3.2,135.4,135.22,16.82]
[1763587511103,3.2,135.38,135.22,16.82]
[1763587511910,0.04650409,135.31,135.29,0.05257922]
[1763587512122,3.25524249,135.31,135.22,16.82]
[1763587512309,3.2,135.37,135.21,16.84]
[1763587512623,3.2,135.37,135.21,47.47671602]
[1763587512817,3.2,135.37,135.22,30.63671602]
[1763587513120,0.04740636,135.31,135.28,0.0523424]
[1763587513422,3.2,135.3,135.21,16.84]
[1763587513612,3.2,135.38,135.21,16.84]
[1763587513813,3.2,135.36,135.25,6.6615]
[1763587514115,3.2,135.34,135.21,16.84]
[1763587514312,3.2,135.33,135.21,16.84]
[1763587514510,0.0554085,135.28,135.21,16.84]
[1763587515421,3.2,135.38,135.22,103.6493]
[1763587515618,3.2,135.38,135.21,120.4931]
[1763587515919,3.2,135.38,135.28,6.66]
[1763587516318,3.2,135.38,135.21,16.84]
[1763587516822,0.04674831,135.31,135.28,0.05667984]
[1763587517021,3.25302055,135.31,135.28,0.04778653]
[1763587518021,0.05302055,135.31,135.28,0.04778653]
[1763587518424,0.05302055,135.31,135.29,6.6594]
[1763587518926,3.2,135.4,135.33,6.6575]
[1763587519126,3.2,135.4,135.27,103.6123]
[1763587519327,3.2,135.4,135.28,120.4061]
[1763587519620,3.2,135.4,135.35,6.6566]
[1763587519830,3.2,135.48,135.29,103.5979]
[1763587520125,3.2,135.39,135.37,0.0485462]
[1763587520322,3.2,135.39,135.28,16.8]
[1763587520716,3.2,135.39,135.34,6.657]
[1763587520917,3.2,135.44,135.3,103.5907]
[1763587521214,0.05240918,135.38,135.37,6.6556]
[1763587521410,0.04699162,135.39,135.37,6.6556]
[1763587521616,0.04743797,135.39,135.38,6.6554]
[1763587522517,0.04743797,135.39,135.37,0.04916747]
[1763587523623,0.04743797,135.39,135.37,6.70476747]
[1763587525328,3.2,135.49,135.37,0.04916747]
[1763587525518,3.2,135.49,135.35,16.76]
[1763587526329,3.20254456,135.43,135.41,0.0485197]
[1763587526632,3.19844914,135.43,135.36,6.6563]
[1763587526929,3.15,135.43,135.36,6.6563]
[1763587527125,3.15,135.43,135.34,6.6573]
[1763587527624,0.05022022,135.4,135.37,0.04921198]
[1763587527825,3.20022022,135.4,135.37,0.04921198]
[1763587528030,3.20022022,135.4,135.34,6.6573]
[1763587528334,3.20022022,135.4,135.27,16.74]
[1763587528535,3.15,135.4,135.27,16.74]
[1763587528728,3.15,135.4,135.34,6.6571]
[1763587528931,0.04705282,135.38,135.36,0.02333346]
[1763587529230,0.04709059,135.38,135.36,6.67953346]
[1763587530427,0.04709059,135.38,135.36,0.02333346]
[1763587530832,0.04709059,135.38,135.36,6.67943346]
[1763587531032,3.15,135.44,135.36,0.02333346]
[1763587531931,0.04834138,135.41,135.38,6.6552]
[1763587532125,0.04834138,135.41,135.38,0.05573347]
[1763587532526,0.04834138,135.41,135.38,6.71083347]
[1763587532718,0.04834138,135.41,135.38,0.05573347]
[1763587533126,3.15,135.48,135.38,0.05573347]
[1763587533425,3.15,135.48,135.34,47.33671602]
[1763587534230,3.15,135.48,135.4,6.70789763]
[1763587534427,0.0551759,135.45,135.4,0.05369763]
[1763587535335,0.0551759,135.45,135.42,6.6533]
[1763587535520,0.0551759,135.45,135.4,0.05369763]
[1763587535521,3.2051759,135.45,135.4,0.05369763]
[1763587535838,9.8573759,135.45,135.4,0.05369763]
[1763587536041,3.15,135.44,135.4,0.05369763]
[1763587536537,0.0551759,135.45,135.4,0.05369763]
[1763587536940,3.2051759,135.45,135.4,0.05369763]
[1763587538332,3.2051759,135.45,135.25,103.6272]
[1763587538333,3.32,135.43,135.19,103.6707]
[1763587538640,3.32,135.37,135.21,10.25888389]
[1763587538834,3.32,135.37,135.29,6.6596]
[1763587539038,3.32,135.37,135.27,10.25888389]
[1763587539432,0.05603415,135.33,135.31,0.05634458]
[1763587539829,0.05603415,135.33,135.31,6.71494458]
[1763587540336,3.32,135.41,135.31,0.05634458]
[1763587540532,3.32,135.41,135.27,10.25888389]
[1763587540732,3.32,135.41,135.3,10.25888389]
[1763587540933,3.32,135.45,135.34,6.6571]
[1763587541140,0.05506924,135.41,135.38,0.04766459]
[1763587542029,0.05506924,135.41,135.38,6.70286459]
[1763587542234,0.05506924,135.41,135.38,0.04766459]
[1763587543244,0.05506924,135.41,135.39,6.6547]
[1763587543638,0.05506924,135.41,135.38,0.04766459]
[1763587544632,0.01506924,135.41,135.38,0.04766459]
[1763587544837,3.32,135.5,135.44,6.6524]
[1763587545137,10.25888389,135.57,135.39,10.25888389]
[1763587545437,3.32,135.56,135.47,6.6507]
[1763587545832,3.36730914,135.53,135.5,0.05578687]
[1763587546033,0.04730914,135.53,135.5,0.05578687]
[1763587547232,3.36730914,135.53,135.5,0.05578687]
[1763587548444,3.36730914,135.53,135.42,26.87888389]
[1763587548646,3.32,135.53,135.42,26.87888389]
[1763587549035,3.32,135.53,135.48,6.6503]
[1763587549533,3.37455653,135.52,135.49,0.05558414]
[1763587549741,3.37441919,135.52,135.35,13.3131]
[1763587550043,3.32,135.52,135.35,10.25888389]
[1763587550347,3.32,135.5,135.35,10.25888389]
[1763587550738,0.048734,135.44,135.41,0.05055543]
[1763587550939,0.05475217,135.44,135.41,0.04655857]
[1763587552245,0.05475217,135.44,135.42,6.6532]
[1763587552548,3.37475217,135.44,135.41,0.04655857]
[1763587553342,3.37475217,135.44,135.32,26.83888389]
[1763587553546,3.32,135.49,135.42,6.6532]
[1763587553745,3.32,135.49,135.35,113.80828389]
[1763587553942,3.32,135.49,135.32,16.58]
[1763587554148,3.32,135.49,135.35,10.25888389]
[1763587554352,0.05423383,135.43,135.41,0.02001317]
[1763587554549,0.04652722,135.43,135.41,0.02001317]
[1763587554952,0.04652722,135.43,135.42,6.6532]
[1763587555747,0.04652722,135.43,135.41,0.02001317]
[1763587556548,0.04652722,135.43,135.41,6.67371317]
[1763587556944,3.36652722,135.43,135.41,0.02001317]
[1763587557140,0.04652722,135.43,135.41,0.02001317]
[1763587557342,3.36652722,135.43,135.41,0.02001317]
[1763587558658,0.04652722,135.43,135.32,16.56]
[1763587558859,3.32,135.46,135.34,113.81468389]
[1763587559065,3.32,135.52,135.47,6.6508]
[1763587559254,3.32,135.57,135.43,10.25888389]
[1763587559557,0.04907347,135.51,135.4,16.58]
[1763587559858,0.05286755,135.47,135.41,10.25888389]
[1763587560046,0.05467295,135.45,135.4,13.3088]
[1763587560253,3.32,135.54,135.39,16.58]
[1763587561056,3.32,135.54,135.41,10.25888389]
[1763587561356,9.87949,135.58,135.46,0.04735166]
[1763587561556,0.05624496,135.53,135.51,0.04735166]
[1763587561757,13.19949,135.58,135.51,0.04735166]
[1763587562453,13.19949,135.58,135.51,6.69615166]
[1763587562655,3.32,135.57,135.51,0.04735166]
[1763587562849,3.32,135.56,135.39,10.25888389]
[1763587563049,3.32,135.53,135.37,10.25888389]
[1763587563454,3.32,135.5,135.34,10.25888389]
[1763587563858,0.05091021,135.43,135.41,0.04778408]
[1763587564154,0.05583489,135.43,135.41,0.05034908]
[1763587564362,3.37583489,135.43,135.41,0.05034908]
[1763587564549,3.37583489,135.43,135.33,16.56]
[1763587564550,3.37583489,135.43,135.34,6.6571]
[1763587564752,3.32,135.43,135.3,16.56]
[1763587564952,3.32,135.41,135.3,16.56]
[1763587565460,0.05557647,135.37,135.3,16.56]
[1763587565655,0.05557647,135.37,135.32,6.658]
[1763587565957,0.05557647,135.37,135.3,16.56]
[1763587566255,3.37557647,135.37,135.23,16.56]
[1763587566462,0.0497863,135.31,135.23,16.56]
[1763587566663,0.0497863,135.31,135.29,6.6598]
[1763587567454,0.0497863,135.31,135.23,16.56]
[1763587567760,3.3,135.41,135.26,103.6207]
[1763587567958,3.3,135.41,135.28,10.25888389]
[1763587568364,3.3,135.41,135.28,16.91918389]
[1763587568556,3.3,135.41,135.25,10.25888389]
[1763587568863,0.04969704,135.34,135.32,0.0497863]
[1763587569057,0.05224311,135.34,135.32,0.0497863]
[1763587569855,3.35224311,135.34,135.32,0.0497863]
[1763587570366,0.05224311,135.34,135.32,0.0497863]
[1763587570560,3.35224311,135.34,135.32,0.0497863]
[1763587570755,3.35224311,135.34,135.23,26.81888389]
[1763587571068,3.3,135.34,135.23,16.56]
[1763587571256,3.3,135.34,135.23,26.81888389]
[1763587571558,3.3,135.4,135.23,16.56]
[1763587571759,3.34728482,135.33,135.23,16.56]